bitfinex-derivatives/quotes_BNBF0:USTF0_20250510
["timestamp","ask_amount","ask_price","bid_price","bid_amount"]
[1746859786200,0.30240258,661.37,660.83,0.30272703]
[1746859786803,0.30240258,661.37,660.84,0.30272703]
[1746859787304,0.30240258,661.37,660.85,0.68872703]
[1746859787504,0.30240258,661.37,660.86,0.30272703]
[1746859788005,0.30240258,661.37,660.87,0.30272703]
[1746859788405,0.30240258,661.37,660.88,0.30272703]
[1746859788800,0.30240258,661.37,660.89,0.30272703]
[1746859789507,0.30240258,661.37,660.9,0.30272703]
[1746859790005,0.30240258,661.37,660.91,0.30272703]
[1746859790408,0.30240258,661.37,660.92,0.30272703]
[1746859790707,0.30240258,661.37,660.93,0.30272703]
[1746859791808,0.30240258,661.37,660.94,0.30272703]
[1746859793211,0.30240258,661.37,660.95,0.30272703]
[1746859794110,0.30240258,661.37,660.96,0.30272703]
[1746859794310,0.30240258,661.37,660.85,0.386]
[1746859794311,0.30240258,661.37,660.97,0.30272703]
[1746859795107,0.30240258,661.37,660.85,0.386]
[1746859795708,0.30240258,661.37,660.86,0.30252217]
[1746859796406,0.30240258,661.37,660.87,0.30252217]
[1746859796811,0.30240258,661.37,660.88,0.30252217]
[1746859797111,0.30240258,661.37,660.89,0.30252217]
[1746859797611,0.30240258,661.37,660.9,0.30252217]
[1746859798207,0.30240258,661.37,660.91,0.30252217]
[1746859798612,0.30240258,661.37,660.92,0.30252217]
[1746859798812,0.30240258,661.37,660.92,0.383]
[1746859799414,0.30240258,661.37,660.93,0.30252217]
[1746859800912,0.26318078,661.51,660.93,0.30252217]
[1746859801517,1.96279585,662.88,660.93,0.30252217]
[1746859801916,0.26302165,662.87,660.93,0.30252217]
[1746859802110,0.50918318,662.87,660.93,0.30252217]
[1746859802313,0.24616153,662.86,660.93,0.30252217]
[1746859802715,0.24616153,662.85,660.93,0.30252217]
[1746859803015,1.96279585,662.77,660.93,0.30252217]
[1746859803515,0.24616153,662.76,660.93,0.30252217]
[1746859803713,0.24616153,662.75,660.93,0.30252217]
[1746859804116,0.24616153,662.74,660.93,0.30252217]
[1746859804516,0.24616153,662.73,660.93,0.30252217]
[1746859804816,0.24616153,662.72,660.93,0.30252217]
[1746859805017,0.24616153,662.72,660.93,0.70252217]
[1746859805210,0.24616153,662.71,660.93,0.70252217]
[1746859805415,0.24616153,662.71,660.94,0.30252217]
[1746859805715,0.24616153,662.7,660.94,0.30252217]
[1746859805911,0.24616153,662.69,660.94,0.30252217]
[1746859806318,0.24616153,662.68,660.94,0.30252217]
[1746859806611,0.24616153,662.67,660.94,0.30252217]
[1746859807416,0.24616153,662.66,660.94,0.30252217]
[1746859807918,0.24616153,662.65,660.94,0.30252217]
[1746859808120,0.50916628,662.65,660.94,0.30252217]
[1746859808317,0.24616153,662.64,660.94,0.30252217]
[1746859808520,0.26300475,662.65,660.94,0.30252217]
[1746859808921,0.24616099,662.64,660.94,0.30252217]
[1746859809221,0.24616099,662.63,660.94,0.30252217]
[1746859809518,0.24616099,662.62,660.94,0.30252217]
[1746859810123,0.24616099,662.61,660.94,0.30252217]
[1746859810722,0.24616099,662.6,660.94,0.30252217]
[1746859810918,0.50919656,662.6,660.94,0.30252217]
[1746859811125,0.24616099,662.59,660.94,0.30252217]
[1746859811524,0.24616099,662.58,660.94,0.30252217]
[1746859811925,1.96279585,662.54,660.94,0.30252217]
[1746859812323,0.24616099,662.53,660.94,0.30252217]
[1746859812726,0.24616099,662.52,660.94,0.30252217]
[1746859813025,0.24616099,662.51,660.94,0.30252217]
[1746859813421,0.24616099,662.5,660.94,0.30252217]
[1746859813821,0.24616099,662.49,660.94,0.30252217]
[1746859814027,1.96279585,662.33,660.94,0.30252217]
[1746859814427,0.24616099,662.32,660.94,0.30252217]
[1746859816529,0.24616099,662.33,660.94,0.30252217]
[1746859816829,0.24616099,662.32,660.94,0.30252217]
[1746859817030,0.50922738,662.32,660.94,0.30252217]
[1746859817223,0.26306639,662.32,660.94,0.30252217]
[1746859817627,0.24616099,662.31,660.94,0.30252217]
[1746859819332,0.24616099,662.31,660.93,0.30252217]
[1746859819826,0.24616099,662.31,660.94,0.30252217]
[1746859820628,0.24616099,662.31,660.95,0.30252217]
[1746859820833,0.26306639,662.32,660.96,0.30252217]
[1746859821033,0.24610586,662.31,660.96,0.30252217]
[1746859821333,0.24610586,662.31,660.97,0.88710632]
[1746859821634,0.24610586,662.31,660.98,1.18963214]
[1746859821834,0.30197795,662.3,660.98,0.30252217]
[1746859822234,0.24610586,662.29,660.98,0.30252217]
[1746859822430,0.24610586,662.29,660.99,0.30252217]
[1746859822734,0.26302662,662.28,660.99,0.30252217]
[1746859822933,0.26302662,662.28,661.0,0.30252217]
[1746859823533,0.26302662,662.28,661.01,0.30252217]
[1746859823727,0.30199163,662.27,661.01,0.30252217]
[1746859823932,0.24610586,662.26,661.01,0.30252217]
[1746859824235,0.24610586,662.26,661.02,0.30252217]
[1746859824534,0.24610586,662.26,661.03,0.30252217]
[1746859825335,0.24610586,662.26,661.04,0.30252217]
[1746859825535,0.30200075,662.25,661.04,0.30252217]
[1746859825732,0.30200075,662.25,661.05,0.30252217]
[1746859825938,0.2630306,662.24,661.05,0.30252217]
[1746859826137,0.50913646,662.24,661.06,0.30252217]
[1746859826338,0.54811573,662.23,661.06,0.30252217]
[1746859826639,0.30201443,662.22,661.07,0.30252217]
[1746859826938,0.54812029,662.22,661.08,0.30252217]
[1746859827338,0.24610586,662.21,661.09,0.30252217]
[1746859827733,0.24610586,662.21,661.1,0.30252217]
[1746859828439,0.24610586,662.21,661.11,0.30252217]
[1746859829039,0.24610586,662.21,661.12,0.30252217]
[1746859829238,0.26303457,662.2,661.12,0.30252217]
[1746859829439,0.26303457,662.2,661.13,0.30252217]
[1746859829735,0.24610586,662.19,661.14,0.30252217]
[1746859830540,0.24610586,662.19,661.15,0.30252217]
[1746859830942,0.24610586,662.19,660.95,0.264]
[1746859831141,0.24610586,662.19,660.96,0.89114041]
[1746859831439,0.24610586,662.19,660.97,0.89114041]
[1746859831639,0.24610586,662.18,660.98,0.89114041]
[1746859831836,0.24610586,662.18,660.99,0.89114041]
[1746859832042,0.24610586,662.19,661.0,1.19358208]
[1746859832236,0.24610586,662.19,661.01,0.89114041]
[1746859832642,0.24610586,662.18,661.02,0.30244167]
[1746859832840,0.24610586,662.18,661.03,0.89114041]
[1746859833040,0.26303457,662.2,661.04,0.30244167]
[1746859833235,0.26303457,662.2,661.05,0.89114041]
[1746859833440,0.24608828,662.19,661.05,0.89114041]
[1746859833741,0.24608828,662.19,661.06,0.30244167]
[1746859833940,0.24608828,662.18,661.07,0.89114041]
[1746859834242,0.24608828,662.19,661.07,1.19358208]
[1746859834439,0.24608828,662.19,661.08,1.19358208]
[1746859834641,0.24608828,662.21,661.09,0.89114041]
[1746859834937,0.26303358,662.18,661.1,0.30244167]
[1746859835142,0.26303358,662.18,661.11,0.89114041]
[1746859835337,0.24608828,662.17,661.11,0.89114041]
[1746859835538,0.24608828,662.17,661.12,0.30244167]
[1746859835740,0.24608828,662.17,661.13,0.89114041]
[1746859836036,0.26303358,662.18,661.13,1.19358208]
[1746859836241,0.3020418,662.16,661.13,0.30244167]
[1746859836437,0.3020418,662.16,661.14,0.30244167]
[1746859836637,0.24608413,662.15,661.14,0.30244167]
[1746859836843,0.54813049,662.15,661.14,0.30244167]
[1746859837041,0.54813049,662.15,661.15,0.30244167]
[1746859837343,0.24608413,662.14,661.15,0.30244167]
[1746859837542,0.24608413,662.14,661.16,0.30244167]
[1746859837943,0.26305346,662.13,661.16,0.30244167]
[1746859838144,0.26305346,662.13,661.17,0.30244167]
[1746859838443,0.24608413,662.12,661.17,0.30244167]
[1746859838738,0.24608413,662.12,661.18,0.30244167]
[1746859839145,0.26305346,662.13,661.18,0.30244167]
[1746859839344,0.26305346,662.13,661.19,0.30244167]
[1746859839645,0.24607845,662.12,661.19,0.30244167]
[1746859839947,0.24607845,662.12,661.2,0.30244167]
[1746859840343,0.24607845,662.12,661.21,0.30244167]
[1746859840744,0.26305346,662.11,661.22,0.30244167]
[1746859841047,0.24607845,662.1,661.23,0.30244167]
[1746859841549,0.24607845,662.1,661.24,0.30244167]
[1746859841848,0.24607845,662.1,661.25,0.30244167]
[1746859842246,0.24607845,662.1,661.26,0.30244167]
[1746859842547,0.24607845,662.1,661.27,0.30244167]
[1746859842847,0.24607845,662.1,661.28,0.30244167]
[1746859843143,0.24607845,662.1,660.95,0.264]
[1746859843348,0.24607845,662.1,660.96,0.89222984]
[1746859843548,0.24607845,662.1,660.97,1.19465344]
[1746859843745,0.30204636,662.15,660.98,0.89222984]
[1746859844049,0.26304352,662.09,660.99,1.19465344]
[1746859844250,0.26304352,662.09,661.0,0.89226904]
[1746859844449,0.26304352,662.09,661.01,0.89226904]
[1746859844649,0.26304352,662.09,661.02,0.89226904]
[1746859844850,0.26304352,662.09,661.03,1.19469264]
[1746859845055,0.26304352,662.09,661.04,1.19468658]
[1746859845249,0.26304352,662.09,661.05,0.89227831]
[1746859845453,0.26304352,662.09,661.06,1.19468426]
[1746859845654,0.26304352,662.09,661.07,1.19468426]
[1746859845854,0.26304352,662.09,661.08,0.89217541]
[1746859846055,0.26304352,662.09,661.09,1.19458697]
[1746859846252,0.26304352,662.09,661.1,1.19457687]
[1746859846450,0.26304352,662.09,661.11,0.30240595]
[1746859846652,0.26304352,662.09,661.12,1.19457722]
[1746859846855,0.26304352,662.09,661.13,0.89217127]
[1746859847152,0.26304352,662.09,661.14,1.19457722]
[1746859847356,0.26304352,662.09,661.15,0.89217127]
[1746859847559,0.26304352,662.09,661.16,1.19457722]
[1746859847757,0.26304352,662.09,661.16,0.30240595]
[1746859847957,0.26304352,662.09,661.17,1.19394252]
[1746859848152,0.26304352,662.09,661.18,1.19371922]
[1746859848356,0.26304352,662.09,661.19,0.89131327]
[1746859848651,0.26304352,662.09,661.2,1.19371922]
[1746859848855,0.26304352,662.09,661.21,0.89131327]
[1746859849060,0.26304352,662.09,661.22,1.19371922]
[1746859849258,0.26304352,662.09,661.23,0.89131327]
[1746859849455,0.26304352,662.09,661.24,0.89131327]
[1746859849661,0.26304352,662.09,661.25,0.89131327]
[1746859849853,0.26304352,662.09,661.22,0.30240595]
[1746859849854,0.26304352,662.09,661.26,1.19371922]
[1746859850055,0.26304352,662.09,661.27,0.89131327]
[1746859850359,0.26304352,662.09,661.28,1.19371922]
[1746859850561,0.26304352,662.09,661.29,0.89131327]
[1746859850860,0.26304352,662.09,661.3,1.19371922]
[1746859851059,0.26304352,662.09,661.31,0.89131327]
[1746859851260,0.26304352,662.09,661.32,1.19222091]
[1746859851461,0.26304352,662.09,661.33,0.88992856]
[1746859851660,0.26304352,662.09,661.34,0.88992856]
[1746859851855,0.26304352,662.09,661.35,0.30228478]
[1746859852056,0.26304352,662.09,661.36,1.19221334]
[1746859852259,0.26304352,662.09,661.37,0.88992856]
[1746859852457,0.30204636,662.15,661.38,0.88992856]
[1746859852660,0.30204636,662.15,661.39,0.88992856]
[1746859852858,0.30204636,662.15,661.4,1.19171765]
[1746859853057,0.26278927,662.14,661.41,1.19171037]
[1746859853362,0.26278927,662.14,661.42,1.19166965]
[1746859853562,0.26278927,662.14,661.43,1.19166965]
[1746859853758,0.26278927,662.14,661.44,0.30228478]
[1746859854062,0.26278927,662.14,661.45,0.30230024]
[1746859854361,0.26278927,662.14,661.46,0.30230024]
[1746859854762,0.26278927,662.14,661.35,0.30230024]
[1746859855059,0.26278927,662.14,661.36,0.30230024]
[1746859855362,0.26278927,662.14,661.37,0.30230024]
[1746859855562,0.26278927,662.14,661.38,0.30230024]
[1746859855857,0.26278927,662.14,661.39,0.30230024]
[1746859856062,0.26278927,662.14,661.4,0.30230024]
[1746859856363,0.26278927,662.14,661.41,0.30230024]
[1746859856964,0.26278927,662.14,661.35,0.30230024]
[1746859857563,0.26278927,662.14,661.34,0.353]
[1746859857564,0.26278927,662.14,661.36,0.30230024]
[1746859858164,0.26278927,662.14,661.37,0.30230024]
[1746859858464,0.26278927,662.14,661.38,0.30230024]
[1746859858865,0.26278927,662.14,661.39,0.30230024]
[1746859859266,0.26278927,662.14,661.4,0.30230024]
[1746859860165,0.26278927,662.14,661.41,0.30230024]
[1746859860567,0.26278927,662.14,661.35,0.30230024]
[1746859860764,0.26278927,662.14,661.36,0.30230024]
[1746859861060,0.26278927,662.14,661.37,0.30230024]
[1746859861365,0.26278927,662.14,661.38,0.30230024]
[1746859861565,0.26278927,662.14,661.39,0.30230024]
[1746859862068,0.26278927,662.14,661.4,0.30230024]
[1746859862266,0.26278927,662.14,661.41,0.30230024]
[1746859862665,0.26278927,662.14,661.42,0.30230024]
[1746859862866,0.26278927,662.14,661.35,0.30230024]
[1746859863267,0.26278927,662.14,661.36,0.30230024]
[1746859863463,0.26278927,662.14,661.35,0.30230024]
[1746859863864,0.26278927,662.14,661.34,0.353]
[1746859864062,0.30205548,662.13,661.34,0.353]
[1746859865166,0.30205548,662.13,661.35,0.417]
[1746859865677,0.24603866,662.12,661.35,0.417]
[1746859866268,0.30205548,662.13,661.35,0.417]
[1746859866768,0.24604433,662.12,661.35,0.417]
[1746859868068,0.26300475,662.11,661.35,0.417]
[1746859868568,0.24604433,662.1,661.35,0.417]
[1746859870971,0.26298885,662.09,661.35,0.417]
[1746859871365,0.24604433,662.08,661.35,0.417]
[1746859873869,0.26300475,662.07,661.35,0.417]
[1746859874266,0.24604433,662.06,661.35,0.417]
[1746859876976,0.26300475,662.05,661.35,0.417]
[1746859877474,0.24604433,662.04,661.35,0.417]
[1746859877676,0.26300475,662.05,661.35,0.417]
[1746859877971,0.24605966,662.04,661.35,0.417]
[1746859878672,0.26300475,662.05,661.35,0.417]
[1746859881981,0.24608542,662.04,661.35,0.417]
[1746859882983,0.26304054,662.03,661.35,0.417]
[1746859883282,0.24608542,662.02,661.35,0.417]
[1746859885384,0.30211024,662.01,661.35,0.417]
[1746859886186,0.50906898,662.0,661.35,0.417]
[1746859886380,0.54812692,661.99,661.35,0.417]
[1746859886685,0.30212393,661.98,661.35,0.417]
[1746859886881,0.54813149,661.98,661.35,0.417]
[1746859887081,0.24600756,661.97,661.35,0.417]
[1746859887280,0.30213305,661.96,661.35,0.417]
[1746859887986,0.24600756,661.95,661.35,0.417]
[1746859889288,0.26306738,661.94,661.35,0.417]
[1746859889687,0.24600756,661.93,661.35,0.417]
[1746859890286,0.26306738,661.94,661.35,0.417]
[1746859890688,0.24602027,661.93,661.35,0.417]
[1746859892088,0.24602027,661.95,661.35,0.417]
[1746859892287,0.26306738,661.92,661.35,0.417]
[1746859893287,0.24602147,661.91,661.35,0.417]
[1746859894287,0.24602147,661.91,661.34,0.353]
[1746859894783,0.24602147,661.95,661.34,0.353]
[1746859894987,0.26319969,661.9,661.34,0.353]
[1746859895488,0.24602147,661.89,661.34,0.353]
[1746859896187,0.24602147,661.89,661.35,0.395]
[1746859896588,0.26319969,661.9,661.35,0.395]
[1746859896889,0.24591298,661.89,661.35,0.395]
[1746859900793,0.24591298,661.95,661.35,0.395]
[1746859901094,0.2631977,661.88,661.35,0.395]
[1746859901486,0.24591298,661.87,661.35,0.395]
[1746859901891,0.24591298,661.87,661.36,0.321]
[1746859909894,0.24591298,661.95,661.36,0.321]
[1746859910101,0.26307036,661.86,661.36,0.321]
[1746859910297,0.24591298,661.85,661.36,0.321]
[1746859911000,0.26306042,661.84,661.36,0.321]
[1746859911501,0.24591298,661.83,661.36,0.321]
[1746859911801,0.26306042,661.84,661.36,0.321]
[1746859912503,0.30214218,661.94,661.36,0.321]
[1746859912801,0.24586329,661.93,661.36,0.321]
[1746859913100,0.50889587,661.93,661.36,0.321]
[1746859913401,0.24586329,661.92,661.36,0.321]
[1746859915902,0.24586329,661.93,661.36,0.321]
[1746859916103,0.26303258,661.91,661.36,0.321]
[1746859916905,0.24578833,661.9,661.36,0.321]
[1746859919001,0.24578833,661.93,661.36,0.321]
[1746859919309,0.26304451,661.89,661.36,0.321]
[1746859920106,0.24584154,661.88,661.36,0.321]
[1746859922203,0.26304451,661.89,661.36,0.321]
[1746859922708,0.24585751,661.88,661.36,0.321]
[1746859924901,0.24585751,661.93,661.36,0.321]
[1746859925208,0.26315292,661.87,661.36,0.321]
[1746859925602,0.24585751,661.86,661.36,0.321]
[1746859926409,0.24585751,661.86,661.37,0.261]
[1746859927805,0.24585751,661.93,661.37,0.261]
[1746859928007,0.26307136,661.85,661.37,0.261]
[1746859928308,0.24585751,661.84,661.37,0.261]
[1746859928510,0.24585751,661.93,661.37,0.261]
[1746859929111,0.26307136,661.92,661.37,0.261]
[1746859929811,0.24585751,661.91,661.37,0.261]
[1746859930914,0.26304551,661.9,661.37,0.261]
[1746859931209,0.24585751,661.89,661.37,0.261]
[1746859934115,0.26305346,661.88,661.37,0.261]
[1746859934614,0.24585751,661.87,661.37,0.261]
[1746859936519,0.30214218,661.94,661.37,0.261]
[1746859936916,0.26304551,661.86,661.37,0.261]
[1746859937113,0.24577979,661.93,661.37,0.261]
[1746859937316,0.24577979,661.85,661.37,0.261]
[1746859937715,0.24577979,661.93,661.37,0.261]
[1746859937912,0.26303358,661.84,661.37,0.261]
[1746859939817,0.30214218,661.94,661.37,0.261]
[1746859940015,0.30213305,661.96,661.37,0.261]
[1746859940217,0.26302165,661.83,661.37,0.261]
[1746859942218,0.24572961,661.82,661.37,0.261]
[1746859942811,0.24572961,661.95,661.37,0.261]
[1746859943112,0.26301966,661.82,661.37,0.261]
[1746859945618,0.30213305,661.96,661.37,0.261]
[1746859946017,0.24574967,661.95,661.37,0.261]
[1746859946618,0.24574967,661.95,661.38,0.455]
[1746859947014,0.26311213,661.94,661.38,0.455]
[1746859947419,0.24574967,661.93,661.38,0.455]
[1746859947719,0.26311213,661.94,661.38,0.455]
[1746859948014,0.24583584,661.93,661.38,0.455]
[1746859948315,0.26311213,661.94,661.38,0.455]
[1746859948820,0.24583024,661.93,661.38,0.455]
[1746859949421,0.24583024,661.95,661.38,0.455]
[1746859950723,0.26300475,661.94,661.38,0.455]
[1746859951618,0.30213305,661.96,661.38,0.455]
[1746859952023,0.26300277,661.95,661.38,0.455]
[1746859952225,0.50878684,661.95,661.38,0.455]
[1746859952525,0.24578407,661.94,661.38,0.455]
[1746859954825,0.24578407,661.94,661.39,0.392]
[1746859955626,0.24578407,661.95,661.39,0.392]
[1746859955926,0.26300376,661.93,661.39,0.392]
[1746859956427,0.24578407,661.92,661.39,0.392]
[1746859958229,0.24578407,661.95,661.39,0.392]
[1746859958932,0.26300376,661.94,661.39,0.392]
[1746859959433,0.24578407,661.93,661.39,0.392]
[1746859959830,0.26300376,661.94,661.39,0.392]
[1746859963538,0.30213305,661.96,661.39,0.392]
[1746859964638,0.26300177,661.95,661.39,0.392]
[1746859966734,0.30213305,661.96,661.39,0.392]
[1746859967238,0.26300177,661.95,661.39,0.392]
[1746859969541,0.30213305,661.96,661.39,0.392]
[1746859969936,0.24574628,661.95,661.39,0.392]
[1746859970240,0.50875998,661.95,661.39,0.392]
[1746859970641,0.24574628,661.94,661.39,0.392]
[1746859973043,0.26301569,661.93,661.39,0.392]
[1746859973342,0.24574628,661.92,661.39,0.392]
[1746859973644,0.26301569,661.93,661.39,0.392]
[1746859973945,0.24563119,661.92,661.39,0.392]
[1746859976046,0.26304551,661.91,661.39,0.392]
[1746859976443,0.24563119,661.9,661.39,0.392]
[1746859979043,0.24563119,661.95,661.39,0.392]
[1746859979243,0.26303755,661.89,661.39,0.392]
[1746859981549,0.30213305,661.96,661.39,0.392]
[1746859982050,0.26302364,661.88,661.39,0.392]
[1746859983751,0.26302364,661.88,661.38,0.455]
[1746859984652,0.30213305,661.96,661.38,0.455]
[1746859985350,0.26312805,661.95,661.38,0.455]
[1746859985951,0.26312805,661.95,661.39,0.246]
[1746859987551,0.30213305,661.96,661.39,0.246]
[1746859988456,0.26301171,661.95,661.39,0.246]
[1746859988658,0.26301171,661.95,661.4,0.30238376]
[1746859989057,0.26301171,661.95,661.39,0.246]
[1746859989754,0.2455387,661.94,661.39,0.246]
[1746859991058,0.2455387,661.95,661.39,0.246]
[1746859991563,0.26301569,661.93,661.39,0.246]
[1746859991962,0.2455387,661.92,661.39,0.246]
[1746859994061,0.2455387,661.95,661.39,0.246]
[1746859994267,0.26301767,661.91,661.39,0.246]
[1746859994463,0.2455387,661.9,661.39,0.246]
[1746859995767,0.2455387,661.9,661.4,0.30239868]
[1746859995966,0.26301767,661.91,661.4,0.30239868]
[1746859996166,0.26301767,661.91,661.39,0.246]
[1746859996568,0.30213305,661.96,661.39,0.246]
[1746859997168,0.26303557,661.95,661.39,0.246]
[1746859999672,0.30213305,661.96,661.39,0.246]
[1746860000770,0.26303557,661.95,661.39,0.246]
[1746860002572,0.30213305,661.96,661.39,0.246]
[1746860006175,0.24560182,661.94,661.4,0.333]
[1746860006375,0.26312805,661.95,661.4,0.333]
[1746860006975,0.24560016,661.94,661.4,0.333]
[1746860010381,0.26312805,661.95,661.4,0.333]
[1746860010682,0.24551831,661.94,661.4,0.333]
[1746860011777,0.24551831,661.95,661.4,0.333]
[1746860011975,0.26301668,661.93,661.4,0.333]
[1746860012581,0.24551831,661.92,661.4,0.333]
[1746860013280,0.26301668,661.93,661.41,0.3023843]
[1746860013678,0.26301668,661.93,661.42,0.30235563]
[1746860014080,0.26301668,661.93,661.43,0.30235563]
[1746860014383,0.26301668,661.93,661.43,0.63135563]
[1746860014584,0.30213305,661.96,661.44,0.30235563]
[1746860015084,0.26298488,661.95,661.44,0.30235563]
[1746860015279,0.26298488,661.95,661.45,0.30235563]
[1746860015877,0.26298488,661.95,661.46,0.30235563]
[1746860016279,0.26298488,661.95,661.47,0.30235563]
[1746860016885,0.26298488,661.95,661.48,0.30235563]
[1746860017384,0.26298488,661.95,661.49,0.30235563]
[1746860017583,0.30213305,661.96,661.49,0.30235563]
[1746860017781,0.30213305,661.96,661.5,0.30235563]
[1746860018085,0.26298488,661.95,661.5,0.30235563]
[1746860018284,0.26298488,661.95,661.51,0.30235563]
[1746860018584,0.26298488,661.95,661.52,0.30235563]
[1746860019387,0.26298488,661.95,661.43,0.329]
[1746860019388,0.26298488,661.95,661.53,0.30235563]
[1746860019786,0.26298488,661.95,661.54,0.30235563]
[1746860020382,0.26298488,661.95,661.55,0.3023203]
[1746860020582,0.30213305,661.96,661.55,0.3023203]
[1746860021186,0.26298488,661.95,661.55,0.3023203]
[1746860023588,0.30213305,661.96,661.55,0.3023203]
[1746860024091,0.26298488,661.95,661.55,0.3023203]
[1746860026592,0.30213305,661.96,661.55,0.3023203]
[1746860027393,0.26298488,661.95,661.55,0.3023203]
[1746860029597,0.30213305,661.96,661.55,0.3023203]
[1746860030090,0.26298786,661.95,661.55,0.3023203]
[1746860031397,0.26298786,661.95,661.56,0.253]
[1746860031795,0.26298786,661.95,661.57,0.30231116]
[1746860032690,0.30213305,661.96,661.57,0.30231116]
[1746860033291,0.26297395,661.95,661.57,0.30231116]
[1746860035599,0.30213305,661.96,661.57,0.30231116]
[1746860036400,0.26297196,661.95,661.57,0.30231116]
[1746860038603,0.30213305,661.96,661.57,0.30231116]
[1746860039198,0.30213305,661.96,661.58,0.346]
[1746860039398,0.26297196,661.95,661.58,0.346]
[1746860041604,0.30213305,661.96,661.58,0.346]
[1746860042904,0.26297097,661.95,661.58,0.346]
[1746860044605,0.30213305,661.96,661.58,0.346]
[1746860045305,0.26297097,661.95,661.59,0.291]
[1746860047605,0.30213305,661.96,661.59,0.291]
[1746860048607,0.26296997,661.95,661.59,0.291]
[1746860050110,0.26296997,661.95,661.6,0.30229746]
[1746860050602,0.30213305,661.96,661.6,0.30229746]
[1746860052816,0.26296898,661.95,661.6,0.30229746]
[1746860056607,0.30213305,661.96,661.6,0.30229746]
[1746860057907,0.26296898,661.95,661.6,0.30229746]
[1746860060315,0.30213305,661.96,661.6,0.30229746]
[1746860061610,0.30213305,661.96,661.61,0.30226555]
[1746860062215,0.30213305,661.96,661.62,0.30226555]
[1746860062514,0.30213305,661.96,661.63,0.30226555]
[1746860062815,0.30213305,661.96,661.64,0.30226555]
[1746860063415,0.30213305,661.96,661.65,0.30226555]
[1746860063818,0.30213305,661.96,661.66,0.30226555]
[1746860064617,0.30213305,661.96,661.67,0.30226555]
[1746860065120,0.30213305,661.96,661.68,0.30226555]
[1746860065716,0.30213305,661.96,661.69,0.30226555]
[1746860065913,0.30213305,661.96,661.7,0.30225177]
[1746860066119,0.30213305,661.96,661.7,0.60451732]
[1746860066317,0.30213305,661.96,661.71,0.30226555]
[1746860066720,0.30213305,661.96,661.72,0.30224264]
[1746860067319,0.30213305,661.96,661.73,0.30222519]
[1746860068025,0.30213305,661.96,661.74,0.3022335]
[1746860069324,0.30213305,661.96,661.69,0.361]
[1746860069525,0.30213305,661.96,661.7,0.30222812]
[1746860069918,0.30213305,661.96,661.71,0.30222812]
[1746860070625,0.30213305,661.96,661.72,0.30222812]
[1746860071225,0.30213305,661.96,661.73,0.30222812]
[1746860071722,0.30213305,661.96,661.74,0.30222812]
[1746860072227,0.30213305,661.96,661.69,0.361]
[1746860072827,0.30213305,661.96,661.7,0.30222699]
[1746860073228,0.30213305,661.96,661.71,0.30222699]
[1746860073726,0.30213305,661.96,661.72,0.30222699]
[1746860074229,0.30213305,661.96,661.73,0.30222699]
[1746860074524,0.30213305,661.96,661.69,0.361]
[1746860075026,0.30213305,661.96,661.7,0.30221887]
[1746860075828,0.30213305,661.96,661.71,0.30221887]
[1746860076525,0.30213305,661.96,661.72,0.30221887]
[1746860077227,0.30213305,661.96,661.73,0.30221887]
[1746860077830,0.30213305,661.96,661.69,0.361]
[1746860088336,0.30213305,661.96,661.7,0.30222983]
[1746860088953,0.30213305,661.96,661.71,0.30222983]
[1746860089541,0.30213305,661.96,661.72,0.30222983]
[1746860090137,0.30213305,661.96,661.73,0.30222983]
[1746860090838,0.30213305,661.96,661.74,0.30222983]
[1746860091437,0.30213305,661.96,661.69,0.748]
[1746860091937,0.30213305,661.96,661.7,0.30221007]
[1746860092338,0.30213305,661.96,661.71,0.30221007]
[1746860092840,0.30213305,661.96,661.72,0.30221007]
[1746860093538,0.30213305,661.96,661.73,0.30221007]
[1746860094040,0.30213305,661.96,661.74,0.30221007]
[1746860094741,0.30213305,661.96,661.75,0.30221007]
[1746860095441,0.30213305,661.96,661.76,0.30221007]
[1746860096042,0.30213305,661.96,661.77,0.30221007]
[1746860096344,0.30213305,661.96,661.78,0.30221007]
[1746860096641,0.30213305,661.96,661.79,0.30221007]
[1746860096841,0.30213305,661.96,661.8,0.30221007]
[1746860097237,0.30213305,661.96,661.81,0.30221007]
[1746860097441,0.30213305,661.96,661.82,0.30221007]
[1746860097935,0.30213305,661.96,661.83,0.30221007]
[1746860098137,0.30213305,661.96,661.84,0.30221007]
[1746860098442,0.30213305,661.96,661.85,0.30221007]
[1746860098940,0.30213305,661.96,661.86,0.30221007]
[1746860099141,0.30213305,661.96,661.87,0.30221007]
[1746860099442,0.30213305,661.96,661.88,0.30221007]
[1746860099941,0.30213305,661.96,661.89,0.30221007]
[1746860100242,0.30213305,661.96,661.9,0.30221007]